fUSD/lending_fUSD_20250223
["ID","MTS","AMOUNT","RATE_DAILY","PERIOD"]
[354161356,1740305432706,-908.0,0.00018254,2]
[354161357,1740305432716,-1550.34131575,0.00018254,2]
[354161358,1740305432728,-2481.65868425,0.00018254,2]
[354161359,1740305432737,-541.906,0.00018254,2]
[354161360,1740305432747,-151.628,0.00018254,2]
[354161362,1740305432757,-1524.49925691,0.00018254,2]
[354161364,1740305432769,-543.46441461,0.00018254,2]
[354161367,1740305432781,-1852.03632848,0.00018254,2]
[354161368,1740305432790,-150.0,0.00018355,2]
[354161369,1740305432801,-3462.42871701,0.0001839,2]
[354161372,1740305432812,-2335.06324627,0.0001839,2]
[354161374,1740305432823,-502.85226426,0.0001839,2]
[354161375,1740305432834,-1025.55818525,0.0001839,2]
[354161376,1740305432846,-174.09758721,0.0001839,2]
[354161377,1740305432857,-1847.61941279,0.000184,2]
[354161379,1740305438414,-1161.58,0.00018254,2]
[354161380,1740305438423,-5491.24553985,0.000184,2]
[354161381,1740305438434,-291.61337449,0.000184,2]
[354161382,1740305438450,-482.33471843,0.000184,2]
[354161383,1740305438465,-47442.18695444,0.000184,2]
[354161384,1740305438474,-169.61560758,0.000184,2]
[354161385,1740305438485,-502.43,0.000184,2]
[354161386,1740305438495,-776.31,0.00018438,2]
[354161387,1740305438504,-440.41,0.00018438,2]
[354161388,1740305438513,-776.31,0.00018438,2]
[354161389,1740305438523,-440.41,0.00018438,2]
[354161390,1740305438533,-440.41,0.00018438,2]
[354161391,1740305438542,-776.31,0.00018438,2]
[354161392,1740305438551,-776.31,0.00018438,2]
[354161393,1740305438560,-440.41,0.00018438,2]
[354161394,1740305438569,-737.46,0.00018438,2]
[354161395,1740305438579,-440.41,0.00018438,2]
[354161396,1740305438588,-877.17,0.00018438,2]
[354161397,1740305438597,-200.0,0.00018478,2]
[354161398,1740305438607,-188967.660557,0.0001848,3]
[354161399,1740305438616,-55995.7697022,0.0001848,3]
[354161401,1740305438625,-55115.5676624,0.0001848,3]
[354161403,1740305438634,-55995.7697022,0.0001848,3]
[354161405,1740305438643,-127126.55536458,0.0001849,2]
[354161407,1740305438652,-447966.157617,0.0001849,3]
[354161409,1740305438662,-221.4423488,0.0001849,2]
[354161411,1740305438671,-221.4423488,0.0001849,2]
[354161413,1740305438680,-221.4423488,0.0001849,2]
[354161415,1740305438689,-303.25873878,0.00018499,2]
[354161417,1740305438698,-999.0,0.00018499,2]
[354161419,1740305438708,-300.0,0.00018499,2]
[354161421,1740305438717,-300.0,0.00018499,2]
[354161423,1740305438727,-666.0,0.00018499,2]
[354161425,1740305438736,-203.34505927,0.000185,3]
[354161427,1740305438744,-1702047.49724277,0.000185,3]
[354161429,1740305438756,-13974.86234094,0.000185,3]
[354161503,1740305440463,-365.78550015,0.00018254,2]
[354161504,1740305440518,-130.07449985,0.00018254,2]
[354161505,1740305440529,-5308.78150008,0.000185,3]
[354161506,1740305440572,-78353.99245507,0.000185,3]
[354161570,1740305443578,-251.54926002,0.000185,3]
[354161581,1740305446470,-1457.99228,0.000185,3]
[354161582,1740305446526,-3562.68598745,0.000185,3]
[354161583,1740305446538,-145523.39278394,0.000185,3]
[354161584,1740305446548,-346.04072174,0.000185,2]
[354161585,1740305446557,-497.08,0.000185,2]
[354161586,1740305446566,-206764.60269596,0.000185,15]
[354161587,1740305446578,-2465.18803461,0.000185,15]
[354161588,1740305446589,-1637.40439275,0.000185,15]
[354161589,1740305446600,-337.82000013,0.000185,15]
[354161590,1740305446611,-5343.3,0.000185,15]
[354161591,1740305446685,-268.987887,0.000185,15]
[354161593,1740305484454,159.78,8.767e-05,2]
[354161595,1740306064893,2144.08073755,0.0002035,120]
[354161596,1740306065275,2144.08073755,0.0002035,120]
[354161597,1740306065664,2144.08073755,0.0002035,120]
[354161598,1740306065979,2144.08073755,0.0002035,120]
[354161599,1740306072495,18991.36278298,0.0002035,120]
[354161600,1740306072825,18991.36278298,0.0002035,120]
[354161601,1740306073226,18991.36278298,0.0002035,120]
[354161602,1740306073538,18991.36278298,0.0002035,120]
[354161606,1740306366087,331.50717549,8e-05,2]
[354161627,1740306575107,185.39,8.767e-05,2]
[354161640,1740306631496,-182.890395,9.85e-05,2]
[354161641,1740306631506,-981.03269584,9.9e-05,2]
[354161642,1740306631516,-150.0,9.975e-05,2]
[354161643,1740306631527,-150.0,9.999e-05,2]
[354161644,1740306631536,-619191.12067414,0.0001,2]
[354161645,1740306631546,-471.6664883,0.0001,2]
[354161646,1740306631560,-550.0,0.0001,2]
[354161647,1740306631569,-150.0,0.00010611,2]
[354161648,1740306631579,-150.0,0.00010945,2]
[354161649,1740306631588,-162.93057,0.00010958,2]
[354161650,1740306631598,-162.82477,0.00010958,2]
[354161651,1740306631609,-156.19901,0.00010958,2]
[354161652,1740306631618,-195.276517,0.00010958,2]
[354161653,1740306631628,-205.04019373,0.00011,2]
[354161654,1740306631637,-6870.40219485,0.00011099,2]
[354161655,1740306631647,-5312.09628601,0.00011099,2]
[354161656,1740306631657,-5312.09628592,0.00011099,2]
[354161657,1740306631667,-162.93057,0.00011287,2]
[354161658,1740306631676,-195.276517,0.00011287,2]
[354161659,1740306631686,-6870.40219478,0.00011298,2]
[354161660,1740306631695,-5312.09628592,0.00011789,2]
[354161661,1740306631705,-6870.40219478,0.00012186,2]
[354161662,1740306631714,-197.95555515,0.000123,2]
[354161663,1740306631724,-197.95555515,0.000123,2]
[354161664,1740306631732,-197.95555515,0.000123,2]
[354161665,1740306631741,-197.95555515,0.000123,2]
[354161666,1740306631750,-150.0,0.00012482,2]
[354161667,1740306631760,-197.95555515,0.00012586,2]
[354161668,1740306631770,-5312.09628592,0.00012733,2]
[354161669,1740306631780,-197.95555515,0.00013002,2]
[354161670,1740306631789,-6870.40219478,0.00013073,2]
[354161671,1740306631799,-197.95555515,0.00013417,2]
[354161672,1740306631808,-5312.09628592,0.00013678,2]
[354161673,1740306631818,-197.95555515,0.00013832,2]
[354161674,1740306631828,-6870.40219478,0.00013961,2]
[354161675,1740306631838,-197.95555515,0.00014247,2]
[354161676,1740306631847,-5312.09628592,0.00014622,2]
[354161677,1740306631857,-197.95555515,0.00014663,2]
[354161678,1740306631867,-154083.572887,0.000148,3]
[354161679,1740306631876,-165.23742247,0.000148,2]
[354161680,1740306631885,-6870.40219478,0.00014849,2]
[354161681,1740306631898,-15835.9542208,0.000149,3]
[354161682,1740306631907,-197.95555515,0.00015078,2]
[354161683,1740306631917,-1698.0,0.000153,3]
[354161684,1740306631926,-488.98,0.00015307,2]
[354161685,1740306631937,-197.95555515,0.00015493,2]
[354161686,1740306631946,-5312.09628592,0.00015567,2]
[354161687,1740306631955,-5551.0,0.000157,5]
[354161688,1740306631965,-6870.40219478,0.00015737,2]
[354161689,1740306631977,-197.95555515,0.00015908,2]
[354161690,1740306631987,-15835.9542208,0.0001609,3]
[354161691,1740306631996,-14911.3135051,0.00016303,3]
[354161692,1740306632006,-23900.0,0.00016313,2]
[354161693,1740306632015,-197.95555515,0.00016324,2]
[354161694,1740306632026,-5312.09628592,0.00016511,2]
[354161695,1740306632036,-165.23742245,0.0001654,2]
[354161696,1740306632046,-6870.40219478,0.00016624,2]
[354161697,1740306632054,-197.95555515,0.00016739,2]
[354161698,1740306632064,-200.0,0.00016762,2]
[354161699,1740306632074,-1002.39453006,0.00017,2]
[354161700,1740306632083,-3720.0,0.000171,3]
[354161702,1740306632092,-197.95555515,0.00017154,2]
[354161704,1740306632102,-200.0,0.00017196,2]
[354161706,1740306632112,-1000.0,0.00017206,2]
[354161708,1740306632121,-200.17,0.0001722,2]
[354161710,1740306632131,-483.29,0.00017284,2]
[354161712,1740306632140,-5312.09628592,0.00017456,2]
[354161714,1740306632150,-154.8,0.00017478,2]
[354161716,1740306632159,-506.59,0.0001748,2]
[354161718,1740306632168,-509.59,0.00017489,2]
[354161720,1740306632178,-4970.43783505,0.00017492,3]
[354161722,1740306632187,-15835.9542208,0.00017492,3]
[354161724,1740306632196,-499.58,0.00017502,2]
[354161726,1740306632206,-6870.40219478,0.00017512,2]
[354161727,1740306632216,-499.89,0.00017519,2]
[354161728,1740306632225,-500.0,0.00017543,2]
[354161729,1740306632234,-197.95555515,0.00017569,2]
[354161730,1740306632243,-488.98,0.00017571,2]
[354161731,1740306632253,-150.78,0.00017576,2]
[354161732,1740306632263,-14911.3135051,0.00017586,3]
[354161733,1740306632273,-30000.0,0.00017596,2]
[354161734,1740306632283,-15835.9542208,0.00017653,3]
[354161735,1740306632293,-502.05,0.00017663,2]
[354161736,1740306632302,-150.0,0.00017678,2]
[354161737,1740306632312,-301.28,0.00017678,2]
[354161738,1740306632321,-439.38,0.00017678,2]
[354161739,1740306632330,-300.34,0.00017678,2]
[354161740,1740306632340,-300.23,0.00017678,2]
[354161741,1740306632349,-150.0,0.00017678,2]
[354161742,1740306632359,-1974.9,0.00017678,2]
[354161743,1740306632369,-150.0,0.00017678,2]
[354161744,1740306632378,-439.38,0.00017678,2]
[354161745,1740306632388,-439.38,0.00017678,2]
[354161746,1740306632398,-150.0,0.00017678,2]
[354161747,1740306632408,-150.0,0.00017678,2]
[354161748,1740306632417,-438.93,0.00017678,2]
[354161749,1740306632427,-220.0,0.00017744,2]
[354161750,1740306632436,-250.17982005,0.000178,2]
[354161751,1740306632445,-150.0,0.00017837,2]
[354161752,1740306632455,-150.0,0.00017848,2]
[354161753,1740306632465,-150.0,0.00017974,2]
[354161754,1740306632475,-150.0,0.00017978,2]
[354161755,1740306632485,-150.0,0.00017978,2]
[354161756,1740306632494,-439.38,0.00017978,2]
[354161757,1740306632504,-197.95555515,0.00017985,2]
[354161758,1740306632513,-503.32,0.00018018,2]
[354161759,1740306632525,-498.4,0.00018027,2]
[354161760,1740306632535,-498.45,0.0001804,2]
[354161761,1740306632545,-4970.43783505,0.00018048,3]
[354161762,1740306632555,-501.43,0.00018058,2]
[354161763,1740306632564,-494.22,0.00018083,2]
[354161764,1740306632574,-506.1,0.00018091,2]
[354161765,1740306632583,-491.11,0.00018099,2]
[354161766,1740306632592,-150.0,0.00018099,2]
[354161767,1740306632602,-501.06,0.00018121,2]
[354161768,1740306632611,-442.3991551,0.0001813,2]
[354161769,1740306632620,-494.66,0.00018145,2]
[354161770,1740306632629,-492.19,0.00018191,2]
[354161771,1740306632639,-505.41,0.00018273,2]
[354161772,1740306632649,-165.23742245,0.00018279,2]
[354161773,1740306632659,-4715.687,0.00018279,2]
[354161774,1740306632669,-947.268,0.00018279,2]
[354161775,1740306632679,-9940.8756701,0.0001828,3]
[354161776,1740306632688,-15835.9542208,0.0001828,3]
[354161777,1740306632697,-2605.23022498,0.0001828,7]
[354161778,1740306632707,-546.9585,0.0001829,2]
[354161779,1740306632717,-9378.9224,0.0001829,2]
[354161780,1740306632726,-4305.0587,0.0001829,2]
[354161781,1740306632735,-7500.0,0.0001829,2]
[354161782,1740306632744,-271.61009242,0.0001829,2]
[354161783,1740306632755,-242.0,0.00018292,2]
[354161784,1740306632765,-271.61009237,0.00018308,2]
[354161785,1740306632776,-14911.3135051,0.0001831,3]
[354161786,1740306632786,-15835.9542208,0.00018317,3]
[354161787,1740306632795,-30000.0,0.0001832,2]
[354161788,1740306632805,-271.61009237,0.00018327,2]
[354161789,1740306632814,-271.61009237,0.00018345,2]
[354161790,1740306632824,-500.0,0.00018351,2]
[354161791,1740306632834,-500.0,0.00018352,2]
[354161792,1740306632843,-500.0,0.00018352,2]
[354161793,1740306632852,-332.16352319,0.0001836,2]
[354161794,1740306632861,-271.61009237,0.00018363,2]
[354161795,1740306632870,-49704.3783505,0.00018369,3]
[354161796,1740306632880,-47507.8626625,0.00018369,3]
[354161797,1740306632890,-4970.43783505,0.00018371,3]
[354161798,1740306632904,-4970.43783505,0.00018375,3]
[354161799,1740306632914,-1009.2,0.00018379,2]
[354161800,1740306632923,-176.053,0.00018379,2]
[354161801,1740306632934,-496.66,0.00018379,2]
[354161802,1740306632944,-733.9755,0.00018379,2]
[354161803,1740306632953,-500.0,0.00018379,2]
[354161804,1740306632962,-85752.2029,0.00018379,2]
[354161805,1740306632972,-193.78402378,0.00018379,2]
[354161806,1740306632982,-4665.7108667,0.0001838,3]
[354161807,1740306633011,-310.34068496,0.0001838,3]
[354161811,1740306637443,-1418.52714052,0.0001838,3]
[354161812,1740306637455,-1007.90953593,0.0001838,3]
[354161813,1740306637466,-5988.13609179,0.0001838,3]
[354161814,1740306637496,-1520.6891852,0.0001838,3]
[354161815,1740306637506,-5203.64711031,0.0001838,3]
[354161816,1740306637552,-11643.99382396,0.0001838,3]
[354161817,1740306637661,-921.42936603,0.0001838,3]
[354161818,1740306637673,-108918.5634667,0.0001838,3]
[354161819,1740306637682,-150.78,0.0001838,2]
[354161820,1740306637691,-271.61009237,0.00018382,2]
[354161821,1740306637701,-209212.528,0.0001839,2]
[354161822,1740306637710,-3575.6404,0.0001839,2]
[354161823,1740306637719,-15835.9542208,0.0001839,3]
[354161824,1740306637728,-285047.175975,0.0001839,3]
[354161825,1740306637737,-150.78,0.0001839,2]
[354161826,1740306637748,-47442.187,0.000184,2]
[354161827,1740306637757,-305.9326,0.000184,2]
[354161828,1740306637766,-344.9045,0.000184,2]
[354161829,1740306637775,-4843.536,0.000184,2]
[354161830,1740306637784,-2636.4974,0.000184,2]
[354161831,1740306637793,-271.61009237,0.000184,2]
[354161832,1740306637803,-716787.2321239,0.000184,2]
[354161833,1740306637812,-197.95555515,0.000184,2]
[354161834,1740306637821,-6870.40219478,0.000184,2]
[354161835,1740306637830,-5312.09628592,0.000184,2]
[354161836,1740306637839,-346.091292,0.000184,2]
[354161837,1740306637848,-7150.13254353,0.00018475,2]
[354161838,1740306637857,-150.0,0.00018486,2]
[354161839,1740306637866,-573.0,0.00018489,2]
[354161840,1740306637876,-332.16352319,0.00018489,2]
[354161841,1740306637885,-150.78,0.0001849,2]
[354161842,1740306637897,-150.78,0.0001849,2]
[354161843,1740306637906,-150.78,0.0001849,2]
[354161844,1740306637916,-3332.38272721,0.0001849,2]
[354161845,1740306637925,-150.78,0.0001849,2]
[354161846,1740306637935,-150.78,0.0001849,2]
[354161847,1740306637944,-332.16352319,0.0001849,2]
[354161848,1740306637953,-300.0,0.00018499,2]
[354161850,1740306637962,-999.0,0.00018499,2]
[354161852,1740306637972,-300.0,0.00018499,2]
[354161853,1740306637980,-666.0,0.00018499,2]
[354161854,1740306637989,-406.69011854,0.00018499,3]
[354161855,1740306637999,-1876264.12554652,0.00018499,3]
[354161856,1740306638006,-509.91,0.000185,2]
[354161857,1740306638015,-506.26,0.000185,2]
[354161858,1740306638024,-173.02036087,0.000185,2]
[354161859,1740306638034,-60792.67229924,0.000185,15]
[354161860,1740306638046,-20727.06821995,0.000185,15]
[354161876,1740306639584,-314.75922216,0.0001,2]
[354161877,1740306639594,-17371.13044114,0.000185,15]
[354161878,1740306639606,-19612.66921709,0.000185,15]
[354161879,1740306639795,-292.560002,0.000185,15]
[354161880,1740306639823,-5404.78800001,0.000185,15]
[354161881,1740306639834,-518.72,0.000185,15]
[354161882,1740306639845,-862.7749996,0.000185,15]
[354161883,1740306640035,-181269.32952271,0.000185,15]
[354162015,1740306642651,-11604.140884,0.000185,15]
[354162016,1740306642705,-15815.55142269,0.000185,15]
[354162017,1740306642759,-1990.24005564,0.000185,15]
[354162018,1740306642770,-3676.78154581,0.000185,15]
[354162019,1740306642813,-2375.63864675,0.000185,15]
[354162020,1740306642868,-284181.27564947,0.000185,15]
[354162022,1740306645502,-517.0,0.000185,2]
[354162023,1740306645511,-85375.68647913,0.000185,15]
[354162024,1740306645661,-270.9328437,0.000185,15]
[354162025,1740307153023,500.0,9.51e-05,2]
[354162033,1740307831883,-161.67900897,0.00013,2]
[354162034,1740307831892,-133.73216409,0.000132,2]
[354162035,1740307831935,-1182.86522863,0.000132,2]
[354162046,1740307837604,-47.70004728,0.000132,2]
[354162047,1740307837614,-157.99,0.00013699,2]
[354162048,1740307837624,-161.78,0.00013994,2]
[354162049,1740307837633,-1364.29744,0.000148,2]
[354162050,1740307837646,-551.25,0.00015174,2]
[354162051,1740307837655,-262.32652817,0.00016322,2]
[354162052,1740307837663,-150.0,0.00016384,2]
[354162053,1740307837673,-1364.29744,0.000164,2]
[354162054,1740307837682,-150.0,0.00016561,2]
[354162055,1740307837691,-150.0,0.00016644,2]
[354162056,1740307837701,-490.44,0.00016656,2]
[354162057,1740307837710,-357.99,0.00017039,2]
[354162058,1740307837720,-216.21167931,0.0001705,2]
[354162059,1740307837729,-166.39,0.00017113,2]
[354162060,1740307837739,-189.56,0.000172,2]
[354162061,1740307837747,-1000.0,0.00017295,2]
[354162062,1740307837756,-445.5,0.00017381,2]
[354162063,1740307837766,-551.25,0.00017438,2]
[354162064,1740307837775,-40.29603767,0.00017492,2]
[354162133,1740307845732,-121.48396233,0.00017492,2]
[354162134,1740307845742,-1540.49,0.00017504,2]
[354162135,1740307845752,-250.0,0.00017838,2]
[354162136,1740307845761,-150.0,0.00017861,2]
[354162137,1740307845771,-490.6,0.00017908,2]
[354162138,1740307845781,-150.0,0.00017918,2]
[354162139,1740307845791,-498.5,0.00017943,2]
[354162140,1740307845800,-150.0,0.00017962,2]
[354162141,1740307845810,-491.19,0.00017996,2]
[354162142,1740307845819,-1932.0,0.00018,10]
[354162143,1740307845829,-2715.07603747,0.00018,2]
[354162144,1740307845840,-7312.72642258,0.00018,2]
[354162145,1740307845849,-150.0,0.00018003,2]
[354162146,1740307845858,-150.0,0.00018048,2]
[354162147,1740307845867,-150.0,0.00018057,2]
[354162148,1740307845876,-150.0,0.00018078,2]
[354162149,1740307845885,-150.0,0.00018095,2]
[354162150,1740307845895,-294.9327701,0.0001813,2]
[354162151,1740307845904,-212.32880732,0.00018138,2]
[354162155,1740307939861,249.62,8.767e-05,2]
[354162158,1740309005859,157.58,8.767e-05,2]
[354162160,1740309031950,-550.0,0.0001,2]
[354162161,1740309031960,-600.0,0.00012,2]
[354162162,1740309031971,-161.78,0.00013923,2]
[354162163,1740309031980,-520.43,0.00015423,2]
[354162164,1740309031992,-249.62,0.00015516,2]
[354162165,1740309032001,-160.13,0.00017348,2]
[354162166,1740309032010,-1000.0,0.00017376,2]
[354162167,1740309032020,-222.75,0.00017417,2]
[354162168,1740309032029,-440.41,0.00017479,2]
[354162169,1740309032038,-776.31,0.00017479,2]
[354162170,1740309032048,-776.31,0.00017541,2]
[354162171,1740309032058,-440.41,0.00017541,2]
[354162172,1740309032250,-776.31,0.00017541,2]
[354162173,1740309032261,-440.41,0.00017541,2]
[354162174,1740309032271,-440.41,0.00017541,2]
[354162175,1740309032280,-776.31,0.00017541,2]
[354162176,1740309032289,-737.46,0.00017541,2]
[354162177,1740309032299,-440.41,0.00017541,2]
[354162178,1740309032309,-877.17,0.00017541,2]
[354162179,1740309032318,-520.43,0.00017687,2]
[354162180,1740309032327,-150.0,0.00017772,2]
[354162181,1740309032335,-150.0,0.00017777,2]
[354162182,1740309032345,-150.0,0.00017861,2]
[354162183,1740309032355,-150.0,0.00017877,2]
[354162184,1740309032364,-150.0,0.00017948,2]
[354162186,1740309032374,-150.0,0.00017952,2]
[354162188,1740309032383,-150.0,0.00017953,2]
[354162190,1740309032393,-150.0,0.00017973,2]
[354162191,1740309032402,-150.0,0.00018004,2]
[354162193,1740309032411,-150.0,0.00018051,2]
[354162194,1740309032422,-150.0,0.00018114,2]
[354162195,1740309032431,-196.6218467,0.0001813,2]
[354162196,1740309032441,-200.0,0.00018138,2]
[354162197,1740309032450,-1136.34274,0.00018138,2]
[354162198,1740309032459,-150.0,0.00018154,2]
[354162199,1740309032469,-1000.0,0.00018155,2]
[354162200,1740309032479,-150.0,0.00018166,2]
[354162202,1740309032489,-150.0,0.00018203,2]
[354162203,1740309032498,-150.0,0.00018273,2]
[354162205,1740309032508,-150.0,0.00018315,2]
[354162207,1740309032518,-197.95555524,0.00018318,2]
[354162209,1740309032527,-200.0,0.00018319,2]
[354162210,1740309032537,-5727.0672,0.00018328,2]
[354162211,1740309032546,-500.0,0.00018369,2]
[354162212,1740309032555,-1000.0,0.00018369,2]
[354162213,1740309032564,-165.1905457,0.00018379,2]
[354162214,1740309032574,-358.0,0.00018389,2]
[354162215,1740309032582,-169.61560758,0.000184,2]
[354162216,1740309032591,-203.34505927,0.00018409,5]
[354162217,1740309032600,-873.68,0.00018409,2]
[354162218,1740309032609,-3149.20565163,0.00018418,5]
[354162219,1740309032626,-486.08,0.00018418,5]
[354162245,1740309040084,-126355.445956,0.00018418,5]
[354162411,1740309046231,-196.6218468,0.0001813,2]
[354162412,1740309046241,-502.67,0.00018418,2]
[354162413,1740309046251,-5027.7753682,0.00018418,5]
[354162414,1740309046337,-24250.56351734,0.00018418,5]
[354162441,1740309936465,11929.94892043,8e-05,2]
[354162444,1740310101838,185.39,8.767e-05,2]
[354162454,1740310232060,-550.0,0.0001,2]
[354162455,1740310232073,-515.16,0.00015268,2]
[354162456,1740310232082,-200.00000001,0.00016644,2]
[354162457,1740310232091,-305.72859,0.00016897,7]
[354162458,1740310232100,-3740.73306053,0.00016963,2]
[354162459,1740310232114,-415.09721781,0.00016963,2]
[354162460,1740310232125,-308.807424,0.00016963,2]
[354162461,1740310232135,-1514.13229766,0.00016963,2]
[354162462,1740310232145,-200.0,0.00017,6]
[354162463,1740310232154,-172.24855055,0.00017071,2]
[354162464,1740310232166,-337.55144945,0.00017071,2]
[354162465,1740310232175,-305.72859,0.00017097,7]
[354162466,1740310232184,-1182.86890123,0.000171,3]
[354162467,1740310232197,-2165.13109877,0.000171,3]
[354162468,1740310232207,-500.0,0.000171,6]
[354162469,1740310232216,-1000.0,0.00017107,2]
[354162470,1740310232225,-678.92560125,0.000172,6]
[354162471,1740310232236,-121.07439875,0.000172,6]
[354162472,1740310232246,-1464.44,0.00017218,2]
[354162473,1740310232254,-151.64,0.00017259,2]
[354162474,1740310232264,-305.72859,0.00017297,7]
[354162475,1740310232273,-1100.0,0.000173,6]
[354162476,1740310232282,-281.21,0.00017311,2]
[354162477,1740310232291,-250.0,0.00017366,2]
[354162478,1740310232299,-852.45450274,0.000174,6]
[354162479,1740310232318,-395.39999862,0.000174,6]
[354162510,1740310238050,-152.14549864,0.000174,6]
[354162511,1740310238060,-305.72859,0.00017497,7]
[354162512,1740310238073,-200.0,0.000175,6]
[354162513,1740310238083,-515.16,0.00017532,2]
[354162514,1740310238092,-200.0,0.000176,6]
[354162515,1740310238102,-305.72859,0.00017697,7]
[354162516,1740310238111,-200.0,0.000177,6]
[354162517,1740310238121,-200.0,0.000178,6]
[354162518,1740310238130,-305.72859,0.00017897,7]
[354162519,1740310238139,-1100.0,0.000179,6]
[354162520,1740310238148,-150.0,0.00017956,2]
[354162521,1740310238157,-376.65065185,0.00018,2]
[354162522,1740310238166,-305.72859,0.00018097,7]
[354162523,1740310238176,-163.8515389,0.0001813,2]
[354162524,1740310238185,-143.1909815,0.00018157,2]
[354162544,1740310246153,-491.55,0.00017475,2]
[354162545,1740310246165,-6.8090185,0.00018157,2]
[354162546,1740310246176,-150.0,0.00018191,2]
[354162547,1740310246186,-1037.93118,0.0001823,2]
[354162548,1740310246196,-150.0,0.00018249,2]
[354162549,1740310246408,-162.09924382,0.00018276,2]
[354162550,1740310246417,-164.76273674,0.00018276,2]
[354162551,1740310246426,-1000.0,0.00018276,2]
[354162552,1740310246435,-5664.37877116,0.00018286,2]
[354162557,1740310735114,500.0,9.511e-05,2]
[354162558,1740310745913,209.4,0.00020348,120]
[354162559,1740310746202,209.4,0.00020348,120]
[354162560,1740310746494,209.4,0.00020348,120]
[354162561,1740310746822,209.4,0.00020348,120]
[354162562,1740310751397,500.0,9.511e-05,2]
[354162563,1740310766113,500.0,9.511e-05,2]
[354162564,1740310780070,500.0,9.511e-05,2]
[354162565,1740310795137,500.0,9.511e-05,2]
[354162566,1740310814499,500.0,9.511e-05,2]
[354162567,1740310827521,500.0,9.511e-05,2]
[354162568,1740310841827,500.0,9.511e-05,2]
[354162569,1740310857659,500.0,9.511e-05,2]
[354162570,1740310870703,500.0,9.511e-05,2]
[354162571,1740310886011,500.0,9.511e-05,2]
[354162572,1740310899951,500.0,9.511e-05,2]
[354162573,1740310916570,500.0,9.511e-05,2]
[354162588,1740311432288,-160.0,9.8e-05,2]
[354162589,1740311432298,-152.67802123,0.0001,2]
[354162590,1740311432307,-101.21241509,0.00011022,2]
[354162591,1740311432319,-398.78758491,0.00011022,2]
[354162592,1740311432328,-500.0,0.00011022,2]
[354162593,1740311432337,-125.77241509,0.00011022,2]
[354162594,1740311432348,-261.61765401,0.00011022,2]
[354162595,1740311432359,-112.6099309,0.00011022,2]
[354162596,1740311432368,-500.0,0.00011022,2]
[354162597,1740311432376,-204.08837117,0.00011022,2]
[354162598,1740311432385,-203.34505926,0.00011023,5]
[354162599,1740311432394,-116922.92935406,0.00011023,5]
[354162600,1740311432405,-1365.199996,0.00011023,5]
[354162601,1740311432416,-6804.0,0.00011023,5]
[354162602,1740311432448,-155251.21500705,0.00011023,5]
[354162603,1740311432459,-146514.72381078,0.00011023,5]
[354162604,1740311432500,-3904.82716293,0.00011023,5]
[354162605,1740311432555,-320.92406428,0.00011023,5]
[354163132,1740311438247,-424.12269323,0.00011023,5]
[354163155,1740311438454,-120463.86027359,0.00011023,5]
[354163158,1740311438465,-473.1025993,0.00011023,5]
[354163529,1740311443358,-9634.1,0.00011023,5]
[354163534,1740311446228,-1194.1076,0.00011023,5]
[354163537,1740311732733,224.65,8.767e-05,2]
[354163539,1740312067132,222.0,0.0002,120]
[354163548,1740312631489,-550.0,0.0001,2]
[354163549,1740312631499,-200.0,0.00011016,2]
[354163550,1740312631507,-864.94265,0.00011022,2]
[354163551,1740312631517,-150.0,0.00011022,2]
[354163552,1740312631527,-159.0,0.00011023,3]
[354163553,1740312631536,-16863.02959592,0.00011023,2]
[354163554,1740312631549,-4826.25,0.00011023,2]